fUSD/lending_fUSD_20250118
["ID","MTS","AMOUNT","RATE_DAILY","PERIOD"]
[349500899,1737226241007,-500.0,0.00019376,2]
[349500901,1737226241016,-40426.8387387,0.0001941,2]
[349500903,1737226241026,-259.99,0.0001942,2]
[349500905,1737226241035,-150.0,0.00019434,2]
[349500907,1737226241045,-150.0,0.00019434,2]
[349500909,1737226241054,-981.04,0.00019434,2]
[349500911,1737226241064,-150.0,0.00019434,2]
[349500913,1737226241074,-437.46,0.00019434,2]
[349500915,1737226241083,-163.41,0.00019434,2]
[349500917,1737226241092,-200.07,0.00019434,2]
[349500918,1737226241102,-299.5,0.00019437,2]
[349500920,1737226241111,-1041.66,0.00019479,2]
[349500922,1737226241121,-1041.66,0.00019479,2]
[349500924,1737226241130,-1041.66,0.00019479,2]
[349500926,1737226241139,-1041.66,0.00019479,2]
[349500928,1737226241148,-1041.66,0.00019479,2]
[349500930,1737226241158,-1041.66,0.00019479,2]
[349500932,1737226241167,-1041.66,0.00019479,2]
[349500934,1737226241178,-1041.66,0.00019479,2]
[349500936,1737226241188,-1041.66,0.00019479,2]
[349500938,1737226241198,-1041.66,0.00019479,2]
[349500940,1737226241207,-1041.66,0.00019479,2]
[349500942,1737226241217,-1041.66,0.00019479,2]
[349500944,1737226241226,-1041.66,0.00019479,2]
[349500946,1737226241235,-1041.66,0.00019479,2]
[349500948,1737226241245,-1041.66,0.00019479,2]
[349500950,1737226241263,-1041.66,0.00019479,2]
[349500952,1737226241273,-1041.66,0.00019479,2]
[349500954,1737226241282,-1041.66,0.00019479,2]
[349500956,1737226241292,-1041.66,0.00019479,2]
[349500958,1737226241301,-1041.66,0.00019479,2]
[349500960,1737226241311,-1041.66,0.00019479,2]
[349500976,1737226241320,-1041.66,0.00019479,2]
[349500979,1737226241460,-1041.66,0.00019479,2]
[349500981,1737226241470,-1041.82,0.00019479,2]
[349500983,1737226241480,-14283.6763025,0.00019516,2]
[349500985,1737226241489,-274.00961505,0.00019524,2]
[349500987,1737226241499,-502.40472861,0.00019524,2]
[349500989,1737226241508,-300.99,0.00019534,2]
[349500991,1737226241517,-150.0,0.00019534,2]
[349500993,1737226241526,-437.46,0.00019534,2]
[349500995,1737226241535,-150.0,0.00019534,2]
[349500997,1737226241544,-150.0,0.00019534,2]
[349500999,1737226241553,-150.0,0.00019534,2]
[349501001,1737226241563,-300.0,0.00019534,2]
[349501003,1737226241572,-981.04,0.00019534,2]
[349501005,1737226241581,-1000.0,0.00019599,2]
[349501007,1737226241590,-1695.41045478,0.0001968,2]
[349501009,1737226241601,-161.57187978,0.000197,2]
[349501011,1737226241610,-161.57187978,0.000197,2]
[349501013,1737226241620,-500.0,0.00019721,2]
[349501015,1737226241629,-166.73794239,0.00019818,2]
[349501017,1737226241639,-981.04,0.00019918,2]
[349501019,1737226241649,-981.04,0.00019918,2]
[349501021,1737226241658,-981.04,0.00019918,2]
[349501023,1737226241671,-977.91,0.00019918,2]
[349501025,1737226241682,-151.0,0.00019918,2]
[349501027,1737226241692,-514.825,0.00019945,2]
[349501029,1737226241702,-7070.8966729,0.0001999,2]
[349501031,1737226241711,-500.0,0.00019999,2]
[349501033,1737226241723,-500.0,0.00019999,2]
[349501035,1737226241732,-500.0,0.00019999,2]
[349501037,1737226241741,-500.0,0.00019999,2]
[349501039,1737226241751,-475.24098752,0.00019999,2]
[349501041,1737226241761,-500.0,0.00019999,2]
[349501043,1737226241771,-44930.41573289,0.0002,2]
[349501045,1737226241781,-2000.0,0.0002,2]
[349501047,1737226241790,-200.0,0.0002,2]
[349501049,1737226241799,-200.0,0.0002,2]
[349501051,1737226241809,-500.0,0.00020003,2]
[349501053,1737226241818,-74736.26112557,0.00020004,2]
[349501055,1737226241827,-150.0,0.00020045,2]
[349501057,1737226241836,-3900.0,0.00020045,2]
[349501059,1737226241846,-259.99,0.00020089,2]
[349501061,1737226241856,-894.97,0.000202,2]
[349501063,1737226241865,-2000.0,0.000202,2]
[349501065,1737226241875,-200.0,0.000202,2]
[349501067,1737226241884,-200.0,0.000202,2]
[349501069,1737226241894,-203.41693314,0.00020233,2]
[349501071,1737226241904,-1695.41045478,0.00020364,2]
[349501073,1737226241913,-200.0,0.00020402,2]
[349501075,1737226241926,-150.73,0.00020466,2]
[349501077,1737226241936,-150.0,0.00020466,2]
[349501079,1737226241946,-150.0,0.00020466,2]
[349501080,1737226241955,-150.0,0.00020466,2]
[349501081,1737226241964,-200.0,0.00020606,2]
[349501082,1737226241975,-40426.8387387,0.0002064,2]
[349501083,1737226241986,-1737.5,0.0002066,2]
[349501084,1737226241996,-14283.6763025,0.00020711,2]
[349501085,1737226242006,-259.99,0.00020758,2]
[349501086,1737226242016,-224.07,0.00020848,2]
[349501087,1737226242026,-153.273363,0.00020879,2]
[349501088,1737226242036,-9244.99076389,0.0002088,2]
[349501089,1737226242046,-250.0,0.00021,2]
[349501090,1737226242056,-700.0,0.00021,2]
[349501091,1737226242065,-1000.0,0.00021042,2]
[349501092,1737226242076,-1695.41045478,0.00021048,2]
[349501093,1737226242086,-500.0,0.00021128,2]
[349501094,1737226242096,-969.68,0.00021128,2]
[349501095,1737226242106,-269.79027957,0.00021128,2]
[349501096,1737226242115,-203.41693314,0.0002115,2]
[349501097,1737226242126,-273.4571205,0.0002119,2]
[349501098,1737226242135,-299.5,0.0002138,2]
[349501099,1737226242145,-250.0,0.000215,2]
[349501100,1737226242155,-500.0,0.00021555,2]
[349501101,1737226242165,-500.0,0.00021555,2]
[349501102,1737226242176,-150.0,0.00021562,2]
[349501103,1737226242186,-150.0,0.00021562,2]
[349501104,1737226242196,-150.0,0.00021562,2]
[349501105,1737226242206,-150.0,0.00021562,2]
[349501106,1737226242215,-150.0,0.00021562,2]
[349501107,1737226242225,-150.0,0.00021562,2]
[349501108,1737226242235,-150.0,0.00021562,2]
[349501109,1737226242245,-150.0,0.00021562,2]
[349501110,1737226242255,-150.0,0.00021562,2]
[349501111,1737226242265,-150.0,0.00021562,2]
[349501112,1737226242275,-320.87,0.00021562,2]
[349501113,1737226242285,-7150.8124066,0.0002167,2]
[349501114,1737226242294,-1695.41045478,0.00021732,2]
[349501115,1737226242304,-500.0,0.00021869,2]
[349501116,1737226242313,-500.0,0.00021869,2]
[349501117,1737226242322,-340.29940059,0.00021869,2]
[349501118,1737226242332,-40426.8387387,0.0002187,2]
[349501119,1737226242342,-1700.0,0.000219,7]
[349501120,1737226242352,-14283.6763025,0.00021905,2]
[349501121,1737226242362,-150.0,0.00021918,2]
[349501122,1737226242372,-467.61795878,0.0002198,2]
[349501123,1737226242382,-250.0,0.00022,2]
[349501124,1737226242392,-3922.0,0.00022,3]
[349501125,1737226242401,-369.0,0.00022,2]
[349501126,1737226242411,-3000.0,0.00022,2]
[349501127,1737226242422,-152.0,0.00022037,3]
[349501128,1737226242431,-203.41693314,0.00022067,3]
[349501129,1737226242441,-500.0,0.00022099,2]
[349501130,1737226242451,-62068.89576316,0.000221,2]
[349501131,1737226242462,-1000.0,0.000221,2]
[349501132,1737226242472,-175.67036756,0.00022175,2]
[349501133,1737226242481,-184.84,0.00022198,2]
[349501134,1737226242491,-500.0,0.00022198,2]
[349501135,1737226242507,-500.0,0.00022199,7]
[349501136,1737226242518,-500.0,0.00022199,7]
[349501137,1737226242528,-500.0,0.00022199,7]
[349501138,1737226242538,-398.93,0.00022199,7]
[349501139,1737226242548,-500.0,0.00022199,7]
[349501140,1737226242557,-500.0,0.00022199,7]
[349501141,1737226242566,-500.0,0.00022199,7]
[349501142,1737226242576,-500.0,0.00022199,7]
[349501143,1737226242585,-273.38,0.00022199,7]
[349501144,1737226242595,-1000.0,0.000222,2]
[349501145,1737226242605,-2300.0,0.000222,8]
[349501146,1737226242615,-1000.0,0.000223,2]
[349501147,1737226242624,-2900.0,0.000223,8]
[349501148,1737226242633,-969.54,0.00022384,2]
[349501149,1737226242643,-300.0,0.00022384,2]
[349501150,1737226242653,-205.0,0.0002239,2]
[349501151,1737226242662,-500.0,0.000224,8]
[349501152,1737226242677,-1695.41045478,0.00022416,2]
[349501153,1737226242686,-150.0,0.00022495,2]
[349501154,1737226242695,-2510.0,0.000225,2]
[349501155,1737226242704,-7499.99999,0.000225,5]
[349501156,1737226242715,-1443.0,0.000225,2]
[349501157,1737226242725,-500.0,0.000225,8]
[349501158,1737226242735,-500.0,0.000226,8]
[349501159,1737226242744,-500.0,0.00022625,2]
[349501160,1737226242753,-500.0,0.00022626,2]
[349501161,1737226242763,-500.0,0.000227,8]
[349501162,1737226242772,-205.0,0.0002279,2]
[349501163,1737226242782,-242.0,0.0002279,2]
[349501164,1737226242792,-1216.0,0.000228,8]
[349501165,1737226242801,-1045.76474958,0.00022818,10]
[349501166,1737226242810,-377.8527184,0.00022825,10]
[349501167,1737226242820,-287.98679154,0.00022826,10]
[349501168,1737226242829,-1045.76474958,0.00022827,10]
[349501169,1737226242839,-1433.7676572,0.0002283,10]
[349501170,1737226242848,-9000.55995625,0.0002284,10]
[349501171,1737226242858,-287.98679154,0.00022841,10]
[349501172,1737226242868,-492.24013855,0.00022843,10]
[349501173,1737226242878,-200.0,0.00022845,10]
[349501174,1737226242888,-200.0,0.00022845,10]
[349501175,1737226242898,-419.99471372,0.00022849,10]
[349501176,1737226242908,-419.99471372,0.0002285,10]
[349501177,1737226242918,-9930.10836093,0.00022851,10]
[349501178,1737226242929,-1433.7676572,0.00022854,10]
[349501180,1737226242938,-419.99471372,0.00022857,10]
[349501181,1737226242948,-200.0,0.00022858,10]
[349501182,1737226242957,-200.0,0.00022863,10]
[349501183,1737226242966,-1045.76474958,0.00022863,10]
[349501184,1737226242975,-2181.51539488,0.00022865,10]
[349501185,1737226243073,-7748.59296605,0.00022865,10]
[349501186,1737226243083,-287.98679154,0.00022868,10]
[349501187,1737226243093,-1000.0,0.00022868,2]
[349501188,1737226243103,-1659.33507115,0.0002287,10]
[349501190,1737226243112,-9930.10836093,0.00022871,10]
[349501192,1737226243121,-9000.55995625,0.00022874,10]
[349501194,1737226243132,-1433.7676572,0.00022876,10]
[349501197,1737226243142,-9000.55995625,0.00022876,10]
[349501199,1737226243151,-419.99471372,0.00022877,10]
[349501201,1737226243161,-9000.55995625,0.00022878,10]
[349501203,1737226243171,-9000.55995625,0.0002288,10]
[349501205,1737226243180,-9000.55995625,0.00022894,10]
[349501208,1737226243190,-492.24013855,0.00022896,10]
[349501211,1737226243200,-200.0,0.00022897,10]
[349501214,1737226243209,-287.98679154,0.00022898,10]
[349501216,1737226243218,-1659.33507115,0.00022898,10]
[349501218,1737226243227,-1433.7676572,0.000229,10]
[349501220,1737226243236,-287.98679154,0.000229,10]
[349501222,1737226243246,-9000.55995625,0.00022903,10]
[349501223,1737226243255,-1045.76474958,0.00022907,10]
[349501224,1737226243265,-9930.10836093,0.00022908,10]
[349501225,1737226243275,-1045.76474958,0.00022912,10]
[349501226,1737226243284,-1659.33507115,0.00022917,10]
[349501227,1737226243293,-1433.7676572,0.00022919,10]
[349501228,1737226243303,-1737.5,0.00022924,2]
[349501229,1737226243312,-492.24013855,0.00022927,10]
[349501230,1737226243322,-200.0,0.00022929,10]
[349501231,1737226243332,-9930.10836093,0.00022929,10]
[349501232,1737226243341,-419.99471372,0.00022931,10]
[349501233,1737226243351,-649.24734126,0.00022937,10]
[349501234,1737226243363,-1010.08772989,0.00022937,10]
[349501235,1737226243372,-1659.33507115,0.00022937,10]
[349501236,1737226243381,-9000.55995625,0.00022942,10]
[349501237,1737226243390,-492.24013855,0.00022942,10]
[349501238,1737226243400,-419.99471372,0.00022948,10]
[349501239,1737226243410,-287.98679154,0.00022948,10]
[349501240,1737226243420,-492.24013855,0.00022954,10]
[349501241,1737226243430,-200.0,0.00022954,10]
[349501242,1737226243440,-1516.16737609,0.00022955,10]
[349501243,1737226243452,-143.16769506,0.00022955,10]
[349501244,1737226243462,-419.99471372,0.00022956,10]
[349501245,1737226243472,-419.99471372,0.00022956,10]
[349501246,1737226243482,-1045.76474958,0.00022958,10]
[349501247,1737226243491,-492.24013855,0.00022961,10]
[349501248,1737226243502,-492.24013855,0.00022962,10]
[349501249,1737226243512,-1045.76474958,0.00022965,10]
[349501250,1737226243522,-951.22796234,0.00022967,10]
[349501251,1737226243700,-151.0,0.0001449,2]
[349501252,1737226243711,-151.0,0.00015932,2]
[349501253,1737226243720,-94.53678724,0.00022967,10]
[349501254,1737226243729,-1498.46321276,0.00022967,10]
[349501255,1737226243740,-8431.64514817,0.00022967,10]
[349501256,1737226243751,-1390.35485183,0.00022968,10]
[349501257,1737226243763,-268.98021932,0.00022968,10]
[349501258,1737226243772,-7592.68965354,0.00022971,10]
[349501261,1737226244127,-1906.44561652,0.000119,2]
[349501262,1737226244138,-151.0,0.00016922,2]
[349501263,1737226244147,-151.0,0.0001818,2]
[349501264,1737226244157,-151.0,0.00019096,2]
[349501265,1737226244167,-151.0,0.00019178,2]
[349501266,1737226244188,-151.0,0.00019178,2]
[349501267,1737226244198,-2337.41870739,0.00022971,10]
[349501268,1737226244208,-1433.7676572,0.00022978,10]
[349501269,1737226244218,-1433.7676572,0.00022978,10]
[349501270,1737226244227,-2371.37735787,0.0002298,10]
[349501271,1737226244239,-264.27626219,0.0002298,10]
[349501272,1737226244250,-773.16,0.0002298,10]
[349501275,1737226246181,-271.40178069,0.00019178,2]
[349501276,1737226246192,-2016.97121209,0.00022108,2]
[349501277,1737226246202,-5990.17999844,0.0002298,10]
[349501278,1737226246213,-531.11474243,0.0002298,10]
[349501279,1737226246222,-203.41693314,0.00022983,3]
[349501280,1737226246231,-103.31807027,0.00022985,10]
[349501281,1737226246243,-96.68192973,0.00022985,10]
[349501282,1737226246252,-287.98679154,0.00022988,10]
[349501283,1737226246261,-200.0,0.00022989,10]
[349501284,1737226246270,-200.0,0.00022991,10]
[349501285,1737226246280,-287.98679154,0.00022991,10]
[349501286,1737226246289,-685.63284167,0.00022991,2]
[349501287,1737226246328,-7776.51211203,0.00022991,2]
[349501288,1737226246337,-492.24013855,0.00022997,10]
[349501289,1737226246346,-969.68,0.00022999,2]
[349501290,1737226246356,-2110.0,0.00023,2]
[349501291,1737226246366,-2000.0,0.00023,2]
[349501292,1737226246375,-2000.0,0.00023,2]
[349501293,1737226246384,-2000.0,0.00023,2]
[349501294,1737226246393,-2000.0,0.00023,2]
[349501295,1737226246402,-1558.14768188,0.00023,2]
[349501296,1737226246474,-2016.97121207,0.00022108,2]
[349501297,1737226246483,-441.85231812,0.00023,2]
[349501298,1737226246492,-2000.0,0.00023,2]
[349501299,1737226246501,-2000.0,0.00023,2]
[349501300,1737226246511,-531.51510146,0.00023,2]
[349501301,1737226246520,-2000.0,0.00023,2]
[349501302,1737226246529,-12500.0,0.00023,2]
[349501303,1737226246539,-10000.0,0.00023,2]
[349501304,1737226246548,-1526.66449915,0.00023,2]
[349501305,1737226246558,-15738.47,0.00023,5]
[349501306,1737226246567,-4231.41,0.00023,2]
[349501307,1737226246576,-2000.0,0.00023,2]
[349501308,1737226246585,-750.0,0.00023,2]
[349501309,1737226246595,-12500.0,0.00023003,2]
[349501310,1737226246604,-12500.0,0.00023005,2]
[349501311,1737226246614,-587.85,0.00023006,2]
[349501312,1737226246623,-500.0,0.00023006,2]
[349501313,1737226246632,-10000.0,0.00023007,2]
[349501314,1737226246642,-4975.75544652,0.00023008,2]
[349501315,1737226246653,-4537.59077213,0.00023008,2]
[349501320,1737226491540,419.23,0.00010137,2]
[349501322,1737226627947,-1395.65416147,0.0001608,2]
[349501323,1737226627970,-1782.0,0.000161,2]
[349501324,1737226627994,-225.40723956,0.0001618,2]
[349501325,1737226628016,-300.0,0.0001628,2]
[349501326,1737226628038,-16296.93859897,0.00016281,7]
[349501330,1737226870579,274.8,0.00024,120]
[349501438,1737227432399,-196.62,0.00012329,2]
[349501439,1737227432409,-120.59148803,0.00015,2]
[349501441,1737227432780,-429.40851197,0.00015,2]
[349501442,1737227432790,-164.04,0.0001573,2]
[349501443,1737227432800,-125.33236432,0.00016174,2]
[349501444,1737227432811,-7895.0003498,0.00016174,2]
[349501445,1737227432821,-9299.08929512,0.00016281,7]
[349501446,1737227432831,-419.23,0.00016813,2]
[349501447,1737227432840,-600.0,0.00017,2]
[349501448,1737227432850,-161.39,0.00017117,2]
[349501449,1737227432859,-550.0,0.00017599,2]
[349501450,1737227432868,-150.0,0.000176,2]
[349501451,1737227432878,-27427.91,0.000176,2]
[349501452,1737227432888,-809.87,0.000176,2]
[349501453,1737227432898,-1346.72,0.0001763,2]
[349501454,1737227432907,-4206.54009039,0.00017813,2]
[349501455,1737227432919,-5793.45990961,0.00017813,2]
[349501456,1737227432930,-10000.0,0.0001857,2]
[349501457,1737227432940,-935.0,0.0001869,2]
[349501459,1737227432950,-203.41693314,0.000189,2]
[349501461,1737227432959,-650.0,0.00019,2]
[349501463,1737227432969,-16025.0093139,0.00019177,2]
[349501465,1737227432978,-500.0,0.00019178,2]
[349501467,1737227432988,-1000.0,0.00019288,2]
[349501469,1737227432998,-324.15,0.00019298,2]
[349501471,1737227433008,-250.0,0.00019321,2]
[349501473,1737227433020,-500.0,0.00019363,2]
[349501475,1737227433030,-500.0,0.00019363,2]
[349501477,1737227433039,-23900.0,0.00019448,2]
[349501478,1737227433048,-10000.0,0.0001962,2]
[349501480,1737227433059,-774.0,0.00019852,2]
[349501483,1737227433069,-1346.72,0.00019894,2]
[349501484,1737227433078,-805.47,0.0002,2]
[349501486,1737227433088,-500.0,0.00020048,2]
[349501489,1737227433101,-6196.18,0.00020084,2]
[349501492,1737227433111,-773.04,0.00020091,2]
[349501495,1737227433121,-250.0,0.00020094,2]
[349501498,1737227433131,-223.93,0.0002014,2]
[349501501,1737227433141,-10869.85,0.00020311,2]
[349501504,1737227433153,-150.0,0.00020362,2]
[349501507,1737227433163,-1900.0,0.00020619,2]
[349501510,1737227433173,-299.5,0.00020705,2]
[349501513,1737227433183,-200.0,0.00020799,2]
[349501516,1737227433194,-1532.4,0.0002083,2]
[349501518,1737227433203,-700.0,0.00021,2]
[349501521,1737227433214,-3900.0,0.00021146,2]
[349501524,1737227433225,-150.0,0.00021146,2]
[349501527,1737227433235,-250.0,0.00021262,2]
[349501530,1737227433246,-295.39,0.00021347,2]
[349501534,1737227433257,-1322.368,0.00021384,2]
[349501537,1737227433267,-611.71213486,0.00021555,2]
[349501540,1737227433277,-1000.0,0.00021699,2]
[349501543,1737227433287,-283.508,0.00021801,2]
[349501545,1737227433296,-5000.0,0.00021801,2]
[349501549,1737227433307,-6460.23435525,0.00021801,2]
[349501552,1737227433316,-167.63566392,0.00021801,2]
[349501555,1737227433326,-1000.0,0.00021899,2]
[349501557,1737227433336,-500.0,0.000219,2]
[349501559,1737227433346,-500.0,0.000219,2]
[349501561,1737227433355,-500.0,0.000219,2]
[349501563,1737227433364,-476.8,0.000219,2]
[349501565,1737227433374,-269.91,0.000219,2]
[349501567,1737227433385,-500.0,0.000219,2]
[349501569,1737227433395,-500.0,0.000219,2]
[349501571,1737227433404,-500.0,0.000219,2]
[349501573,1737227433413,-153.3145001,0.000219,2]
[349501575,1737227433422,-194006.7336,0.00021901,2]
[349501577,1737227433432,-339.99708654,0.00021901,2]
[349501579,1737227433442,-150.0,0.00021918,2]
[349501581,1737227433451,-6460.23435519,0.00021945,2]
[349501583,1737227433461,-114899.94553141,0.00022001,2]
[349501585,1737227433471,-205.95554589,0.00022001,2]
[349501587,1737227433480,-167.63566388,0.00022018,2]
[349501589,1737227433490,-6460.23435519,0.0002209,2]
[349501591,1737227433500,-1748.04171723,0.00022101,2]
[349501593,1737227433509,-1346.72,0.00022158,2]
[349501595,1737227433519,-1003.0,0.000222,2]
[349501597,1737227433528,-1000.0,0.000222,3]
[349501599,1737227433537,-1000.0,0.000222,2]
[349501601,1737227433547,-1000.0,0.000222,3]
[349501603,1737227433557,-1246.0,0.000222,3]
[349501605,1737227433566,-1000.0,0.000222,2]
[349501607,1737227433575,-1000.0,0.000222,2]
[349501609,1737227433586,-1000.0,0.000222,2]
[349501611,1737227433595,-1002.0,0.000222,2]
[349501613,1737227433604,-1000.0,0.000222,2]
[349501615,1737227433614,-6460.23435519,0.00022234,2]
[349501617,1737227433623,-167.63566388,0.00022234,2]
[349501619,1737227433634,-339.99708653,0.00022301,2]
[349501621,1737227433643,-6460.23435519,0.00022378,2]
[349501623,1737227433654,-167.63566388,0.00022451,2]
[349501625,1737227433664,-150.0,0.00022495,2]
[349501627,1737227433674,-6460.23435519,0.00022523,2]
[349501629,1737227433683,-273.4571206,0.00022547,2]
[349501631,1737227433692,-6460.23435519,0.00022667,2]
[349501633,1737227433702,-167.63566388,0.00022667,2]
[349501635,1737227433711,-6460.23435519,0.00022811,2]
[349501637,1737227433721,-200.0,0.00022823,10]
[349501639,1737227433730,-500.0,0.00022824,2]
[349501641,1737227433740,-200.0,0.0002288,10]
[349501643,1737227433749,-167.63566388,0.00022884,2]
[349501645,1737227433758,-7239.5979,0.00022884,2]
[349501647,1737227433768,-800.0,0.00022902,2]
[349501649,1737227433777,-182.7459,0.00022902,2]
[349501651,1737227433787,-200.0,0.00022904,10]
[349501653,1737227433796,-500.0,0.0002291,2]
[349501655,1737227433806,-200.0,0.00022914,10]
[349501657,1737227433816,-500.0,0.00022938,2]
[349501659,1737227433825,-500.0,0.00022938,2]
[349501661,1737227433834,-686.85,0.00022938,2]
[349501663,1737227433844,-500.0,0.00022938,2]
[349501665,1737227433853,-500.0,0.00022938,2]
[349501667,1737227433864,-500.0,0.00022939,2]
[349501669,1737227433873,-290.9554999,0.00022939,2]
[349501671,1737227433882,-15394.1504,0.0002294,2]
[349501673,1737227433892,-6460.23435519,0.00022956,2]
[349501675,1737227433901,-48777.4459,0.00022984,2]
[349501677,1737227433911,-100546.7562,0.00022989,2]
[349501679,1737227433920,-630.92,0.00022992,2]
[349501681,1737227433930,-1000.0,0.00022992,2]
[349501683,1737227433939,-2000.0,0.00023,2]
[349501685,1737227433948,-2000.0,0.00023,2]
[349501687,1737227433957,-2000.0,0.00023,2]
[349501689,1737227433966,-2000.0,0.00023,2]
[349501691,1737227433976,-2000.0,0.00023,2]
[349501692,1737227433985,-12500.0,0.00023,2]
[349501694,1737227433994,-10000.0,0.00023,2]
[349501696,1737227434004,-750.0,0.00023,2]
[349501698,1737227434016,-242.20149354,0.00023,2]
[349501700,1737227434026,-12500.0,0.00023003,2]
[349501702,1737227434036,-500.0,0.00023003,2]
[349501704,1737227434046,-686.85,0.00023003,2]
[349501706,1737227434056,-500.0,0.00023003,2]
[349501708,1737227434067,-500.0,0.00023003,2]
[349501710,1737227434076,-5443.5309576,0.00023004,2]
[349501712,1737227434088,-2751.0989434,0.00023004,2]
[349501714,1737227434098,-12500.0,0.00023005,2]
[349501716,1737227434108,-10000.0,0.00023007,2]
[349501718,1737227434117,-12500.0,0.00023008,2]
[349501720,1737227434127,-2000.0,0.00023008,2]
[349501722,1737227434139,-200.0,0.00023008,2]
[349501724,1737227434150,-3000.0,0.00023008,2]
[349501726,1737227434160,-12500.0,0.0002301,2]
[349501728,1737227434170,-12500.0,0.00023013,2]
[349501730,1737227434180,-10000.0,0.00023013,2]
[349501732,1737227434190,-3039.75,0.00023015,2]
[349501734,1737227434200,-242.20149354,0.00023017,2]
[349501736,1737227434211,-10000.0,0.0002302,2]
[349501738,1737227434220,-10000.0,0.00023027,2]
[349501740,1737227434231,-242.20149354,0.00023033,2]
[349501742,1737227434241,-242.20149354,0.0002305,2]
[349501743,1737227434251,-242.20149354,0.00023067,2]
[349501744,1737227434260,-150.0,0.00023071,2]
[349501745,1737227434270,-1900.3634,0.00023083,2]
[349501746,1737227434279,-242.20149354,0.00023083,2]
[349501747,1737227434288,-5515.0468776,0.00023085,2]
[349501748,1737227434297,-5586.5627976,0.00023085,2]
[349501749,1737227434306,-5658.0787177,0.00023085,2]
[349501750,1737227434315,-5729.5946377,0.00023085,2]
[349501751,1737227434325,-5801.1105578,0.00023085,2]
[349501752,1737227434334,-1973.34522949,0.00023085,2]
[349502165,1737227438891,-210.35,0.000219,2]
[349502166,1737227438901,-339.99708653,0.000227,2]
[349502167,1737227438911,-804.81370351,0.00023085,2]
[349502168,1737227438921,-768.43921644,0.00023085,2]
[349502244,1737227440591,-810.924985,0.00023085,2]
[349502245,1737227440602,-381.885,0.00023085,2]
[349502246,1737227440616,-843.96972116,0.00023085,2]
[349502247,1737227440626,-2393.37978891,0.00023085,2]
[349502248,1737227440638,-438.89912329,0.00023085,2]
[349502249,1737227440649,-1085.09103132,0.00023085,2]
[349502250,1737227440661,-425.16,0.00023085,2]
[349502251,1737227440896,-390.242268,0.00023085,2]
[349502252,1737227440908,-366.9766092,0.00023085,2]
[349502253,1737227440920,-591.86899328,0.00023085,2]
[349502254,1737227440929,-2886.3988914,0.00023085,2]
[349502255,1737227440939,-3100.0,0.0002309,30]
[349502256,1737227440948,-330.0,0.00023096,2]
[349502257,1737227440957,-2000.0,0.00023099,2]
[349502258,1737227440967,-686.85,0.00023099,2]
[349502259,1737227440976,-500.0,0.00023099,2]
[349502260,1737227440986,-500.0,0.00023099,2]
[349502261,1737227440996,-5206.08046256,0.000231,2]
[349502262,1737227441007,-452.40035734,0.000231,2]
[349502263,1737227441019,-436.59678302,0.000231,2]
[349502277,1737227443846,-500.0,0.00022938,2]
[349502278,1737227443856,-2476.86175753,0.000231,2]
[349502279,1737227443867,-5031.75789997,0.000231,2]
[349502309,1737227446413,-80496.56058168,0.000231,2]
[349502316,1737227446700,-1285.94650567,0.000231,2]
[349502348,1737228319602,1380.76739888,9e-05,2]
[349502349,1737228329188,190.98,0.00010137,2]
[349502350,1737228329220,3812.77937389,0.00011,2]
[349502353,1737228336020,275.16771606,8e-05,2]
[349502359,1737228475249,809.66937692,0.0001,2]
[349502360,1737228478846,21230.63613425,0.0001,2]
[349502382,1737228520326,6965.84512349,8e-05,2]